bitfinex/quotes_SOLUSD_20250601
["timestamp","ask_amount","ask_price","bid_price","bid_amount"]
[1748737904444,10.51800184,155.85,155.81,6.41807329]
[1748737906269,10.51800184,155.85,155.79,18.15570263]
[1748737906270,10.51800184,155.82,155.79,18.15570263]
[1748737907284,10.51800184,155.82,155.79,0.8569169]
[1748737907590,10.51800184,155.81,155.79,0.8569169]
[1748737907757,10.51800184,155.81,155.79,7.27576248]
[1748737907958,10.51800184,155.81,155.79,0.8569169]
[1748737912259,10.51800184,155.82,155.79,7.27571673]
[1748737912465,26.0,155.86,155.79,17.79371857]
[1748737912675,10.51800184,155.83,155.79,17.79371857]
[1748737912883,10.51800184,155.86,155.81,10.51800184]
[1748737913084,10.51800184,155.86,155.82,10.51800184]
[1748737913498,10.51800184,155.85,155.79,49.32295981]
[1748737913674,10.51800184,155.85,155.81,10.51800184]
[1748737914288,16.93293254,155.89,155.82,6.4176614]
[1748737914485,10.51800184,155.84,155.81,6.41796169]
[1748737915587,10.51800184,155.85,155.81,6.41796169]
[1748737918185,10.51800184,155.85,155.81,16.93596353]
[1748737918380,10.51800184,155.86,155.81,16.93596353]
[1748737918588,10.51800184,155.86,155.82,10.51800184]
[1748737918992,1.5655,155.88,155.83,10.51800184]
[1748737919298,11.62104504,155.99,155.85,10.51800184]
[1748737919299,10.51800184,155.9,155.85,10.51800184]
[1748737919871,10.51800184,155.9,155.86,6.41601437]
[1748737920677,10.51800184,155.9,155.86,16.93401621]
[1748737920877,16.98680184,155.91,155.86,16.93401621]
[1748737921613,1.5655,155.92,155.87,10.51800184]
[1748737921774,12.08350184,155.92,155.88,10.51800184]
[1748737921976,12.08350184,155.92,155.88,16.93282661]
[1748737922289,53.22122655,155.95,155.9,10.51800184]
[1748737922290,6.4688,155.95,155.9,10.51800184]
[1748737922494,16.98680184,155.95,155.9,10.51800184]
[1748737923381,16.98680184,155.95,155.91,10.51800184]
[1748737924272,23.39913613,155.95,155.91,10.51800184]
[1748737924893,10.51800184,155.94,155.9,10.51800184]
[1748737925485,10.51800184,155.91,155.87,21.39800184]
[1748737925998,10.51800184,155.91,155.87,10.88]
[1748737926499,16.93206812,155.91,155.87,21.39800184]
[1748737926712,6.41406628,155.91,155.87,21.39800184]
[1748737926918,16.03077909,155.95,155.88,10.51800184]
[1748737927107,10.51800184,155.93,155.88,10.51800184]
[1748737927482,0.5,155.94,155.9,10.51800184]
[1748737927684,16.93031347,155.95,155.9,10.51800184]
[1748737928084,16.93031347,155.95,155.91,10.51800184]
[1748737928505,10.51800184,155.95,155.91,10.51800184]
[1748737928707,7.97752187,155.96,155.91,10.51800184]
[1748737928708,12.08350184,155.96,155.91,10.51800184]
[1748737928896,12.08350184,155.96,155.92,10.51800184]
[1748737929209,1.5655,155.96,155.92,10.51800184]
[1748737929410,1.5655,155.96,155.91,18.79181043]
[1748737929580,1.5655,155.96,155.95,10.51800184]
[1748737929781,1.5655,155.96,155.94,10.51800184]
[1748737930908,1.5655,155.96,155.94,16.93064084]
[1748737931211,16.9287882,155.99,155.94,16.93064084]
[1748737933211,10.51800184,156.03,155.98,10.51800184]
[1748737933600,10.51800184,156.01,155.97,10.51800184]
[1748737934407,6.40861317,156.04,155.97,16.92947211]
[1748737934612,10.51800184,156.01,155.97,16.92947211]
[1748737935498,82.36116966,156.05,155.97,16.92947211]
[1748737935499,10.51800184,156.02,155.97,16.92947211]
[1748737936488,6.40861317,156.04,155.97,16.92947211]
[1748737936691,10.51800184,156.03,155.99,10.51800184]
[1748737937498,10.51800184,156.03,155.98,10.51800184]
[1748737937816,6.40891309,156.04,155.99,10.51800184]
[1748737938014,6.40891309,156.04,155.98,6.41097095]
[1748737938015,10.51800184,156.04,155.98,6.41097095]
[1748737938317,10.51800184,156.04,155.99,10.51800184]
[1748737938518,12.10130184,156.03,155.98,6.41097095]
[1748737938830,12.10130184,156.03,155.99,10.51800184]
[1748737939010,6.435,156.02,155.97,6.69581252]
[1748737939324,6.435,156.02,155.99,10.51800184]
[1748737940412,6.435,156.02,155.98,10.51800184]
[1748737940598,6.435,156.02,155.97,6.69581252]
[1748737940800,16.95300184,156.02,155.98,10.51800184]
[1748737941609,16.95300184,156.02,155.99,16.92866919]
[1748737941807,6.435,156.02,155.99,16.92866919]
[1748737943325,6.435,156.02,156.0,10.51800184]
[1748737944532,6.435,156.02,156.01,10.51800184]
[1748737945037,1.5833,156.03,156.01,10.51800184]
[1748737945334,1.5833,156.03,156.02,42.92743652]
[1748737945731,22.30955919,156.12,156.02,58.95102323]
[1748737945930,1.5234,156.08,156.06,10.51800184]
[1748737946322,1.5234,156.08,156.07,10.51800184]
[1748737947432,1.5234,156.08,156.07,16.92538314]
[1748737948238,1.5234,156.08,156.07,6.4073813]
[1748737949128,1.5234,156.08,156.07,16.92538314]
[1748737951017,1.5234,156.08,156.06,6.40765726]
[1748737951256,10.51800184,156.07,156.05,17.18808198]
[1748737951539,10.51800184,156.07,156.05,6.40808198]
[1748737951744,12.04140184,156.08,156.05,6.40808198]
[1748737952734,1.5234,156.08,156.05,6.40808198]
[1748737954231,1.5234,156.08,156.05,16.92608382]
[1748737955732,1.5234,156.08,156.05,6.40808198]
[1748737956859,10.51800184,156.07,156.03,6.4090239]
[1748737957141,10.51800184,156.05,156.03,6.4090239]
[1748737957347,1.5234,156.08,156.03,6.4090239]
[1748737957647,12.04140184,156.08,156.03,16.92702574]
[1748737957944,10.51800184,156.07,156.03,6.4090239]
[1748737958632,1.5234,156.08,156.03,16.92702574]
[1748737958832,10.51800184,156.07,156.03,16.92702574]
[1748737959927,10.51800184,156.07,156.03,6.4090239]
[1748737960330,10.51800184,156.06,156.03,6.4090239]
[1748737960553,10.51800184,156.05,156.03,6.4090239]
[1748737960929,10.51800184,156.05,156.01,106.78949959]
[1748737961124,10.51800184,156.05,156.01,17.18949959]
[1748737961544,10.51800184,156.03,156.01,6.40949959]
[1748737961725,0.14216157,156.08,156.01,6.40949959]
[1748737961925,10.51800184,156.04,156.01,6.40949959]
[1748737963226,10.51800184,156.03,156.0,32.41021387]
[1748737964026,10.51800184,156.03,156.0,6.41021387]
[1748737964449,10.51800184,156.04,156.0,32.41021387]
[1748737965527,10.51800184,156.06,156.01,10.51800184]
[1748737965726,10.51800184,156.07,156.02,10.51800184]
[1748737965930,10.51800184,156.08,156.03,10.51800184]
[1748737966351,10.51800184,156.07,156.02,10.51800184]
[1748737966953,10.51800184,156.07,156.03,6.4090239]
[1748737967730,6.40619861,156.1,156.03,6.4090239]
[1748737967931,10.51800184,156.07,156.03,6.4090239]
[1748737971833,10.51800184,156.08,156.03,16.92702574]
[1748737972966,7.983,156.09,156.03,32.9495855]
[1748737973262,10.51800184,156.08,156.03,32.9495855]
[1748737974467,7.983,156.09,156.04,10.51800184]
[1748737974645,7.983,156.09,156.06,10.51800184]
[1748737974849,7.983,156.09,156.05,10.51800184]
[1748737975054,7.983,156.09,156.06,10.51800184]
[1748737976067,7.983,156.09,156.07,6.4073813]
[1748737976755,10.51800184,156.08,156.06,6.40765361]
[1748737977866,10.51800184,156.07,156.04,6.40861317]
[1748737979570,10.51800184,156.05,156.01,6.40984552]
[1748737980571,10.51800184,156.04,156.01,6.40984552]
[1748737980777,10.51800184,156.02,156.0,6.41016159]
[1748737981485,10.51800184,156.01,155.98,6.41071074]
[1748737981682,10.51800184,156.02,155.98,6.41071074]
[1748737981985,10.51800184,156.01,155.98,6.41071074]
[1748737982281,10.51800184,156.0,155.97,6.41148938]
[1748737982485,10.51800184,155.99,155.97,6.41148938]
[1748737984190,10.51800184,155.99,155.96,6.41190048]
[1748737985175,10.51800184,155.99,155.95,6.41231163]
[1748737985789,10.51800184,156.0,155.95,16.93031347]
[1748737987185,10.51800184,155.99,155.95,16.93031347]
[1748737988164,10.51800184,155.96,155.92,10.74]
[1748737988388,10.51800184,155.95,155.93,6.41313409]
[1748737988682,40.32216157,156.01,155.94,10.51800184]
[1748737988683,1.641,156.01,155.94,10.51800184]
[1748737988885,12.15900184,156.01,155.93,48.44596933]
[1748737989085,10.51800184,155.99,155.94,10.51800184]
[1748737989276,10.51800184,155.98,155.93,58.96397117]
[1748737989670,10.51800184,155.97,155.93,6.41313409]
[1748737989869,10.51800184,155.95,155.93,6.41313409]
[1748737990986,10.51800184,155.95,155.92,6.4135454]
[1748737991414,10.51800184,155.93,155.88,10.74]
[1748737991596,10.51800184,155.9,155.86,10.51800184]
[1748737991768,10.51800184,155.91,155.87,10.51800184]
[1748737992176,10.51800184,155.92,155.87,10.51800184]
[1748737993181,10.51800184,155.92,155.88,6.41519117]
[1748737994479,10.51800184,155.91,155.86,22.45605029]
[1748737994663,10.51800184,155.91,155.87,10.51800184]
[1748737994868,10.51800184,155.92,155.87,10.51800184]
[1748737995501,26.0,155.96,155.9,10.51800184]
[1748737995700,21.25800184,155.97,155.92,10.51800184]
[1748737996377,18.64964886,156.01,155.89,26.0]
[1748737996378,6.37196193,156.05,155.96,6.41190048]
[1748737996580,10.51800184,156.02,155.97,10.51800184]
[1748737996894,10.51800184,156.01,155.96,32.95965353]
[1748737997270,10.51800184,155.99,155.96,6.41190048]
[1748737997474,10.51800184,156.03,155.96,6.41190048]
[1748737997475,10.51800184,156.0,155.96,6.41190048]
[1748737997983,10.51800184,156.01,155.96,16.92990232]
[1748737998178,10.51800184,156.01,155.96,6.41190048]
[1748737998418,10.51800184,156.0,155.96,6.41190048]
[1748737998702,10.51800184,156.0,155.96,22.44165169]
[1748737999501,10.51800184,155.98,155.94,6.41272284]
[1748737999915,10.51800184,155.97,155.94,6.41272284]
[1748738000111,10.51800184,155.97,155.92,16.93154724]
[1748738000298,10.51800184,155.96,155.92,6.4135454]
[1748738000608,10.51800184,155.95,155.9,16.03503944]
[1748738000781,10.51800184,155.95,155.9,26.55304128]
[1748738000983,0.14216157,155.97,155.9,26.55304128]
[1748738001272,10.51800184,155.95,155.9,26.55304128]
[1748738001700,10.51800184,155.94,155.9,6.41436818]
[1748738001875,6.91156748,155.97,155.9,6.41436818]
[1748738001876,10.51800184,155.93,155.9,6.41436818]
[1748738002832,10.51800184,155.91,155.84,16.0412366]
[1748738003032,10.51800184,155.88,155.85,6.41642605]
[1748738003410,10.51800184,155.9,155.85,32.97549301]
[1748738003605,40.2,155.92,155.84,6.41683778]
[1748738003606,10.51800184,155.87,155.84,6.41683778]
[1748738004639,42.04947903,156.01,155.84,58.97693407]
[1748738004818,10.51800184,155.88,155.84,6.41683778]
[1748738005015,10.51800184,155.87,155.84,6.41683778]
[1748738006027,10.51800184,155.88,155.83,16.9352514]
[1748738006326,10.51800184,155.9,155.85,10.51800184]
[1748738007522,10.51800184,155.9,155.86,6.41601437]
[1748738007918,36.88216157,155.93,155.86,22.45605029]
[1748738008119,10.51800184,155.91,155.86,32.97405213]
[1748738009040,10.51800184,155.92,155.86,32.97405213]
[1748738009225,10.51800184,155.91,155.86,32.97405213]
[1748738009535,10.51800184,155.92,155.86,32.97405213]
[1748738009733,10.51800184,155.92,155.86,16.04003592]
[1748738009944,10.51800184,155.92,155.86,26.55803776]
[1748738010136,10.51800184,155.92,155.87,10.51800184]
[1748738010439,21.25800184,155.93,155.87,10.51800184]
[1748738011042,10.51800184,155.93,155.87,10.51800184]
[1748738011217,10.51800184,155.93,155.88,6.41519117]
[1748738012434,10.51800184,155.91,155.88,6.41519117]
[1748738013437,10.51800184,155.9,155.88,6.41519117]
[1748738013640,10.51800184,155.89,155.87,6.6424]
[1748738013959,10.51800184,155.88,155.87,6.6424]
[1748738015437,10.51800184,155.88,155.87,13.05800274]
[1748738017127,0.14216157,155.91,155.87,13.05800274]
[1748738017325,10.51800184,155.88,155.87,13.05800274]
[1748738017529,10.51800184,155.89,155.87,13.05800274]
[1748738017749,10.51800184,155.89,155.87,6.41560274]
[1748738018874,10.51800184,155.89,155.85,6.41642605]
[1748738021156,10.51800184,155.89,155.84,10.51800184]
[1748738021157,10.51800184,155.89,155.84,32.97693407]
[1748738022073,17.15162811,155.97,155.87,10.51800184]
[1748738022266,10.74,155.97,155.89,10.51800184]
[1748738022447,10.51800184,155.95,155.9,10.51800184]
[1748738022647,241.36,156.01,155.91,10.51800184]
[1748738022648,18.64964886,156.0,155.91,10.51800184]
[1748738022866,10.51800184,155.97,155.92,10.51800184]
[1748738023176,10.51800184,155.97,155.93,6.41313409]
[1748738023875,10.51800184,155.99,155.94,10.51800184]
[1748738025171,10.51800184,156.0,155.96,6.41190048]
[1748738025375,10.51800184,156.01,155.96,16.92990232]
[1748738025670,10.51800184,156.0,155.96,6.41190048]
[1748738027270,10.51800184,155.99,155.96,6.41190048]
[1748738027672,10.51800184,155.98,155.94,6.41242995]
[1748738028068,18.933972,156.01,155.94,16.93043179]
[1748738028383,10.51800184,155.99,155.94,16.93043179]
[1748738031571,10.51800184,155.99,155.92,22.44720926]
[1748738031777,10.51800184,155.98,155.93,10.51800184]
[1748738032899,10.51800184,155.98,155.94,6.41272284]
[1748738033576,10.51800184,155.99,155.94,16.93072468]
[1748738034190,10.51800184,155.98,155.94,6.41272284]
[1748738036082,10.51800184,155.97,155.94,6.41272284]
[1748738036282,10.51800184,155.95,155.92,6.4135454]
[1748738036693,6.4103687,156.0,155.92,16.93154724]
[1748738036694,10.51800184,155.97,155.92,16.93154724]
[1748738037206,10.51800184,155.97,155.91,16.03468031]
[1748738037394,10.51800184,155.97,155.92,10.51800184]
[1748738040097,10.51800184,155.99,155.94,10.51800184]
[1748738040402,10.51800184,156.01,155.95,10.51800184]
[1748738040595,10.51800184,156.0,155.95,10.51800184]
[1748738041005,10.51800184,155.99,155.94,10.51800184]
[1748738041211,10.51800184,155.97,155.93,6.41313409]
[1748738041414,10.51800184,155.96,155.93,6.41313409]
[1748738041908,10.51800184,155.97,155.93,6.41313409]
[1748738044701,10.51800184,155.98,155.93,10.51800184]
[1748738044904,10.51800184,155.98,155.91,22.44884868]
[1748738044905,47.15800184,156.03,155.94,10.51800184]
[1748738045216,10.51800184,156.0,155.95,10.51800184]
[1748738046101,10.51800184,156.0,155.96,6.41190048]
[1748738046686,10.51800184,155.99,155.93,16.03196735]
[1748738046918,10.51800184,155.98,155.93,26.54996919]
[1748738047728,10.51800184,155.96,155.92,10.51800184]
[1748738048125,10.51800184,155.96,155.93,6.41313409]
[1748738048428,10.51800184,155.97,155.93,6.41313409]
[1748738049934,0.14216157,155.99,155.93,6.41313409]
[1748738050105,10.51800184,155.98,155.93,16.93113593]
[1748738054236,10.51800184,155.98,155.93,10.51800184]
[1748738054605,10.51800184,155.96,155.91,22.44884868]
[1748738054815,10.51800184,155.95,155.91,22.44884868]
[1748738055211,10.51800184,155.95,155.91,6.41395676]
[1748738056351,10.51800184,155.94,155.91,6.41395676]
[1748738057021,10.51800184,155.95,155.91,6.41395676]
[1748738057227,10.51800184,155.97,155.92,10.51800184]
[1748738057425,10.51800184,155.99,155.94,6.41272284]
[1748738058029,10.51800184,155.98,155.94,6.41272284]
[1748738066175,10.51800184,155.99,155.94,6.41272284]
[1748738067765,1.6063,156.01,155.95,10.51800184]
[1748738067955,1.6063,156.01,155.97,10.51800184]
[1748738068156,1.6063,156.01,155.98,6.41107834]
[1748738068562,12.12430184,156.01,155.98,6.41107834]
[1748738069357,10.51800184,156.01,155.98,6.41107834]
[1748738069959,10.64,156.03,155.97,16.92949122]
[1748738070175,10.51800184,156.02,155.97,16.92949122]
[1748738070373,10.51800184,156.01,155.97,6.41148938]
[1748738072287,0.5,156.02,155.97,6.41148938]
[1748738072490,10.51800184,156.02,155.97,16.92949122]
[1748738072850,10.64,156.03,155.99,10.51800184]
[1748738073186,16.67710184,156.04,155.99,10.51800184]
[1748738073187,10.51800184,156.04,155.99,10.51800184]
[1748738073990,34.40331108,156.05,156.0,6.41025641]
[1748738074163,34.40331108,156.05,156.0,16.92825825]
[1748738074965,23.88530924,156.05,156.0,16.92825825]
[1748738075172,23.88530924,156.05,156.02,10.51800184]
[1748738075363,22.30240924,156.05,156.02,10.51800184]
[1748738077258,22.30240924,156.05,156.01,10.51800184]
[1748738078663,32.82041108,156.05,155.97,112.04021285]
[1748738078873,10.51800184,156.01,155.97,89.6]
[1748738079069,10.51800184,156.01,155.96,16.92977663]
[1748738079384,16.92798354,156.01,155.96,42.92977663]
[1748738080382,16.92798354,156.01,155.95,10.62]
[1748738080383,10.51800184,156.0,155.95,27.55021929]
[1748738080585,10.51800184,155.97,155.91,116.25395617]
[1748738080884,10.51800184,155.97,155.92,16.93154724]
[1748738081384,6.41119107,155.98,155.92,16.93154724]
[1748738081682,10.51800184,155.97,155.92,16.93154724]
[1748738081862,10.51800184,155.97,155.92,10.51800184]
[1748738082061,10.51800184,155.97,155.92,16.9314881]
[1748738083175,10.51800184,155.97,155.91,10.62]
[1748738083176,10.51800184,155.95,155.91,10.62]
[1748738083380,10.51800184,155.95,155.9,10.51800184]
[1748738083689,10.51800184,155.94,155.9,10.51800184]
[1748738083983,10.51800184,155.95,155.9,10.51800184]
[1748738084374,10.51800184,155.95,155.91,6.41395676]
[1748738085487,10.51800184,155.95,155.9,16.9322432]
[1748738085888,16.02673164,155.99,155.9,16.9322432]
[1748738085889,6.55323991,155.98,155.9,16.9322432]
[1748738086064,10.51800184,155.96,155.91,10.51800184]
[1748738086469,10.51800184,155.96,155.91,16.93180856]
[1748738087987,84.81181043,156.0,155.94,10.51800184]
[1748738087988,6.5175,155.98,155.94,10.51800184]
[1748738088300,17.03550184,155.98,155.93,10.51800184]
[1748738088661,17.03550184,155.98,155.93,16.93086579]
[1748738089167,6.5175,155.98,155.94,10.51800184]
[1748738090980,6.5175,155.98,155.93,6.41286395]
[1748738090981,1.654,156.0,155.96,10.51800184]
[1748738093504,1.654,156.0,155.97,6.41148938]
[1748738094980,1.654,156.0,155.94,22.44452994]
[1748738095203,1.654,156.0,155.96,10.51800184]
[1748738096085,1.654,156.0,155.97,6.41148938]
[1748738101519,12.17200184,156.0,155.97,6.41148938]
[1748738102497,10.51800184,156.02,155.97,16.92949122]
[1748738102816,34.54720924,156.05,156.0,10.51800184]
[1748738103018,45.06521108,156.05,156.0,10.51800184]
[1748738103191,45.06521108,156.05,156.01,16.92784736]
[1748738103192,23.92720924,156.05,156.01,16.92784736]
[1748738103593,23.92720924,156.05,156.02,10.51800184]
[1748738103807,6.6266,156.07,156.04,10.51800184]
[1748738104196,6.6266,156.07,156.03,10.51800184]
[1748738104722,1.6248,156.1,156.05,10.51800184]
[1748738105021,1.6248,156.1,156.06,10.51800184]
[1748738105214,1.6248,156.1,156.07,6.4073813]
[1748738105721,1.6248,156.1,156.06,10.51800184]
[1748738105722,1.6248,156.1,156.06,16.92568366]
[1748738106898,1.6248,156.1,156.06,10.51800184]
[1748738107715,1.6248,156.1,156.07,10.51800184]
[1748738108122,1.6248,156.1,156.05,6.4080953]
[1748738108310,1.6248,156.1,156.06,10.51800184]
[1748738108915,12.14280184,156.1,156.06,10.51800184]
[1748738109126,1.6248,156.1,156.06,10.51800184]
[1748738110403,12.14280184,156.1,156.06,10.51800184]
[1748738110624,18.54913963,156.1,156.06,10.51800184]
[1748738110825,8.03113779,156.1,156.06,10.51800184]
[1748738110998,8.03113779,156.1,156.07,10.51800184]
[1748738110999,1.6248,156.1,156.07,10.51800184]
[1748738111205,6.0398,156.11,156.08,10.51800184]
[1748738111409,10.51800184,156.1,156.05,16.92599692]
[1748738111648,10.51800184,156.1,156.05,10.51800184]
[1748738112128,6.0398,156.11,156.07,10.51800184]
[1748738113923,12.44559513,156.11,156.07,10.51800184]
[1748738114442,22.96359697,156.11,156.07,10.51800184]
[1748738115450,10.51800184,156.1,156.04,89.6]
[1748738115647,10.51800184,156.08,156.03,10.51800184]
[1748738116034,16.92511361,156.08,156.03,10.51800184]
[1748738116347,16.92511361,156.08,156.03,36.51800184]
[1748738116714,1.6632,156.1,156.05,10.51800184]
[1748738116715,6.40667401,156.09,156.05,10.51800184]
[1748738117445,8.069405,156.1,156.06,10.51800184]
[1748738118146,18.58740684,156.1,156.06,10.51800184]
[1748738118522,18.58740684,156.1,156.05,10.51800184]
[1748738121922,18.58740684,156.1,156.06,10.51800184]
[1748738122122,10.51800184,156.1,156.03,6.40885689]
[1748738122427,10.51800184,156.1,156.05,10.51800184]
[1748738123968,6.40532923,156.12,156.05,10.51800184]
[1748738124333,10.51800184,156.1,156.05,10.51800184]
[1748738125067,10.51800184,156.1,156.04,16.92647106]
[1748738126051,16.92436716,156.1,156.04,16.92647106]
[1748738126965,16.9242002,156.1,156.05,10.51800184]
[1748738127256,10.51800184,156.11,156.06,10.51800184]
[1748738127467,10.51800184,156.12,156.07,10.51800184]
[1748738128967,16.92355441,156.12,156.07,16.92534621]
[1748738129461,10.51800184,156.12,156.07,16.92534621]
[1748738129845,16.92333521,156.12,156.07,16.92534621]
[1748738130769,10.51800184,156.12,156.07,16.92534621]
[1748738130979,19.06306825,156.15,156.08,10.51800184]
[1748738131169,19.06306825,156.15,156.09,10.51800184]
[1748738131368,19.06306825,156.15,156.07,6.40734437]
[1748738131369,10.51800184,156.12,156.08,10.51800184]
[1748738132171,19.06306825,156.15,156.06,42.92564279]
[1748738132172,10.51800184,156.11,156.06,42.92564279]
[1748738133573,6.40558749,156.12,156.06,42.92564279]
[1748738133574,6.54667034,156.14,156.06,42.92564279]
[1748738133901,6.54667034,156.14,156.07,10.51800184]
[1748738133902,10.51800184,156.12,156.07,10.51800184]
[1748738134374,10.51800184,156.11,156.07,10.51800184]
[1748738135388,10.51800184,156.11,156.07,16.92517416]
[1748738135694,10.51800184,156.12,156.07,16.92517416]
[1748738136676,10.51800184,156.14,156.08,10.51800184]
[1748738136888,7.6706,156.15,156.1,10.51800184]
[1748738137097,22.46811453,156.17,156.13,16.92292081]
[1748738138607,22.46811453,156.17,156.14,10.51800184]
[1748738139122,10.51800184,156.19,156.15,6.40409862]
[1748738139498,10.51800184,156.18,156.15,6.40409862]
[1748738141121,1.6259,156.2,156.15,6.40409862]
[1748738141428,10.51800184,156.19,156.15,6.40409862]
[1748738143224,1.6259,156.2,156.15,6.40409862]
[1748738143419,12.14390184,156.2,156.15,16.92210046]
[1748738145830,10.51800184,156.19,156.15,6.40409862]
[1748738147134,10.51800184,156.19,156.15,16.92210046]
[1748738148745,12.14390184,156.2,156.15,16.92210046]
[1748738149043,10.51800184,156.19,156.15,6.40409862]
[1748738149809,12.14390184,156.2,156.15,16.92210046]
[1748738150115,10.51800184,156.18,156.14,6.40436883]
[1748738150320,8.02804349,156.2,156.14,6.40436883]
[1748738150525,10.51800184,156.19,156.14,16.92237067]
[1748738151832,12.14390184,156.2,156.15,10.51800184]
[1748738153238,12.14390184,156.2,156.16,6.40368852]
[1748738153748,10.51800184,156.19,156.16,6.40368852]
[1748738154639,10.51800184,156.19,156.15,6.40409862]
[1748738156052,10.51800184,156.18,156.13,6.40467888]
[1748738156253,10.51800184,156.14,156.08,100.11800184]
[1748738156432,10.51800184,156.13,156.08,10.51800184]
[1748738156952,10.51800184,156.14,156.09,10.51800184]
[1748738157538,39.94,156.17,156.1,10.51800184]
[1748738157738,10.51800184,156.16,156.12,6.40532923]
[1748738159856,10.51800184,156.16,156.12,10.51800184]
[1748738160356,10.51800184,156.16,156.11,10.51800184]
[1748738160540,10.51800184,156.15,156.09,22.4229611]
[1748738160743,10.51800184,156.15,156.1,10.51800184]
[1748738161759,10.51800184,156.15,156.11,6.40573954]
[1748738163633,10.51800184,156.14,156.11,6.40573954]
[1748738164059,10.51800184,156.15,156.11,6.40573954]
[1748738164276,10.51800184,156.14,156.11,6.40573954]
[1748738164561,46.34340659,156.17,156.11,6.40573954]
[1748738164772,10.51800184,156.14,156.11,6.40573954]
[1748738165064,10.51800184,156.14,156.08,89.6]
[1748738165065,10.51800184,156.12,156.08,96.0068481]
[1748738165279,10.51800184,156.1,156.06,6.40779187]
[1748738165952,10.51800184,156.11,156.06,16.92579371]
[1748738166173,10.51800184,156.1,156.06,6.40779187]
[1748738167361,10.51800184,156.14,156.09,10.51800184]
[1748738167540,10.51800184,156.14,156.1,10.51800184]
[1748738168179,10.51800184,156.15,156.1,10.51800184]
[1748738168383,10.51800184,156.14,156.09,10.51800184]
[1748738168874,10.51800184,156.14,156.1,6.4061499]
[1748738169377,10.51800184,156.12,156.07,10.51800184]
[1748738169860,10.51800184,156.11,156.06,16.92579371]
[1748738170177,10.51800184,156.1,156.06,6.40779187]
[1748738171055,10.51800184,156.11,156.06,16.92579371]
[1748738171388,18.51500184,156.12,156.07,10.51800184]
[1748738171790,34.06724467,156.16,156.09,10.51800184]
[1748738172071,12.03930184,156.16,156.11,10.51800184]
[1748738172480,1.5213,156.16,156.12,10.51800184]
[1748738172861,1.5213,156.16,156.13,6.40491897]
[1748738173767,12.03930184,156.16,156.13,6.40491897]
[1748738174186,10.51800184,156.14,156.11,6.40543994]
[1748738174566,10.51800184,156.14,156.1,6.40604058]
[1748738174777,10.51800184,156.13,156.1,6.40604058]
[1748738174975,10.51800184,156.14,156.1,6.40604058]
[1748738176883,10.51800184,156.14,156.09,16.92447754]
[1748738177075,10.51800184,156.12,156.08,6.40682282]
[1748738177376,6.40458095,156.14,156.08,6.40682282]
[1748738177377,10.51800184,156.11,156.08,6.40682282]
[1748738177767,10.51800184,156.12,156.08,6.40682282]
[1748738181584,10.51800184,156.13,156.08,16.92482466]
[1748738183280,10.51800184,156.12,156.08,16.92482466]
[1748738184477,10.51800184,156.13,156.08,16.92482466]
[1748738187203,10.51800184,156.12,156.08,16.92482466]
[1748738187605,10.51800184,156.12,156.08,6.40682282]
[1748738187789,10.51800184,156.12,156.08,16.92482466]
[1748738187996,10.51800184,156.12,156.08,6.40682282]
[1748738189205,10.51800184,156.13,156.08,16.92482466]
[1748738193209,1.5735,156.14,156.09,10.51800184]
[1748738193210,12.09150184,156.14,156.09,10.51800184]
[1748738193696,12.09150184,156.14,156.1,10.51800184]
[1748738193897,12.09150184,156.14,156.08,22.42424978]
[1748738193898,10.51800184,156.17,156.12,10.51800184]
[1748738194100,10.51800184,156.18,156.14,6.40450877]
[1748738197094,1.5341,156.19,156.15,10.51800184]
[1748738197293,10.51800184,156.2,156.15,10.51800184]
[1748738197491,10.51800184,156.19,156.15,10.51800184]
[1748738198398,10.51800184,156.19,156.14,32.93378254]
[1748738200100,10.51800184,156.19,156.14,16.01127193]
[1748738200299,10.51800184,156.19,156.14,26.52927377]
[1748738202218,10.51800184,156.19,156.14,32.93378254]
[1748738204125,18.20470184,156.2,156.15,10.51800184]
[1748738205831,18.20470184,156.2,156.16,6.40368852]
[1748738208313,7.6867,156.2,156.16,6.40368852]
[1748738208622,18.20470184,156.2,156.16,6.40368852]
[1748738209736,10.51800184,156.19,156.16,6.40368852]
[1748738212835,10.51800184,156.19,156.16,6.40368852]
[1748738214442,18.20470184,156.2,156.16,6.40368852]
[1748738214622,7.6867,156.2,156.16,22.41290983]
[1748738214944,7.6867,156.2,156.16,32.93091167]
[1748738215114,11.70052351,156.21,156.16,32.93091167]
[1748738215324,7.6768,156.23,156.18,10.51800184]
[1748738215749,18.19480184,156.23,156.18,10.51800184]
[1748738216127,10.51800184,156.22,156.17,10.51800184]
[1748738216720,10.51800184,156.22,156.18,6.40286848]
[1748738217230,7.6768,156.23,156.18,6.40286848]
[1748738217231,7.6768,156.23,156.18,32.92804153]
[1748738217433,7.6768,156.23,156.19,10.51800184]
[1748738217826,10.51800184,156.25,156.2,10.51800184]
[1748738219041,10.51800184,156.25,156.21,6.40163881]
[1748738221845,21.98742548,156.26,156.23,10.51800184]
[1748738222320,21.98742548,156.26,156.22,10.51800184]